[Event "*** Titled Tuesday Blitz"]
[Site "Chess.com"]
[Date "2021.02.09"]
[Round "5"]
[White "c_r_e_e_p_e_r"]
[Black "Chessmasterzt"]
[Result "0-1"]
[WhiteElo "2404"]
[BlackElo "2614"]
[TimeControl "180+1"]
[EndTime "10:57:22 PST"]
[Termination "Chessmasterzt won on time"]

1. d4 {[%clk 0:03:00.9]} 1... Nf6 {[%clk 0:02:59]} 2. c4 {[%clk 0:03:01.2]} 2...
g6 {[%clk 0:02:59.2]} 3. f3 {[%clk 0:02:58.3]} 3... Bg7 {[%clk 0:02:46.8]} 4. e4
{[%clk 0:02:58.4]} 4... d6 {[%clk 0:02:47.7]} 5. Nc3 {[%clk 0:02:58.3]} 5... O-O
{[%clk 0:02:48]} 6. Nge2 {[%clk 0:02:58.3]} 6... a6 {[%clk 0:02:38.4]} 7. Be3
{[%clk 0:02:56.3]} 7... Nbd7 {[%clk 0:02:35.8]} 8. Qd2 {[%clk 0:02:56.1]} 8...
c5 {[%clk 0:02:35.7]} 9. d5 {[%clk 0:02:55.1]} 9... Qa5 {[%clk 0:02:23.9]} 10.
Ng3 {[%clk 0:02:42.2]} 10... b5 {[%clk 0:02:16.2]} 11. cxb5 {[%clk 0:02:39.1]}
11... axb5 {[%clk 0:02:11.1]} 12. Bxb5 {[%clk 0:02:36.2]} 12... Ba6 {[%clk
0:02:11.6]} 13. Bxa6 {[%clk 0:02:13.8]} 13... Qxa6 {[%clk 0:02:12.5]} 14. Kf2
{[%clk 0:02:08.6]} 14... Rfb8 {[%clk 0:02:10.8]} 15. b3 {[%clk 0:02:07.6]} 15...
Ne5 {[%clk 0:01:56.6]} 16. Rhd1 {[%clk 0:01:43.2]} 16... Qa5 {[%clk 0:01:47.1]}
17. Nge2 {[%clk 0:01:36.8]} 17... Qb4 {[%clk 0:01:31.7]} 18. h3 {[%clk
0:01:29.9]} 18... c4 {[%clk 0:01:22.6]} 19. Nd4 {[%clk 0:01:11.1]} 19... Nfd7
{[%clk 0:01:00.2]} 20. f4 {[%clk 0:00:41.9]} 20... Nd3+ {[%clk 0:00:58.8]} 21.
Kg1 {[%clk 0:00:42.3]} 21... N7c5 {[%clk 0:00:47.1]} 22. Nc6 {[%clk 0:00:39.6]}
22... Qxc3 {[%clk 0:00:45.7]} 23. Nxb8 {[%clk 0:00:34.6]} 23... Qxd2 {[%clk
0:00:33.9]} 24. Bxd2 {[%clk 0:00:32.3]} 24... Bxa1 {[%clk 0:00:21.8]} 25. Nc6
{[%clk 0:00:19.9]} 25... Rxa2 {[%clk 0:00:17.5]} 26. bxc4 {[%clk 0:00:17.5]}
26... Kf8 {[%clk 0:00:14.6]} 27. f5 {[%clk 0:00:16.9]} 27... Ne5 {[%clk
0:00:09.8]} 28. Bh6+ {[%clk 0:00:16.7]} 28... Ke8 {[%clk 0:00:09.7]} 29. Rb1
{[%clk 0:00:14.9]} 29... Bb2 {[%clk 0:00:08.5]} 30. Bc1 {[%clk 0:00:12.3]} 30...
Nxc6 {[%clk 0:00:06.6]} 31. dxc6 {[%clk 0:00:09.3]} 31... Ra1 {[%clk 0:00:04.2]}
32. Rxb2 {[%clk 0:00:04.1]} 32... Rxc1+ {[%clk 0:00:04.7]} 33. Kh2 {[%clk
0:00:04.7]} 33... Kd8 {[%clk 0:00:05]} 0-1

[Event "*** Titled Tuesday Blitz"]
[Site "Chess.com"]
[Date "2021.02.09"]
[Round "5"]
[White "anon481216"]
[Black "A-S-00"]
[Result "1-0"]
[WhiteElo "2479"]
[BlackElo "2317"]
[TimeControl "180+1"]
[EndTime "10:57:23 PST"]
[Termination "anon481216 won by resignation"]

1. d4 {[%clk 0:03:00.9]} 1... Nf6 {[%clk 0:02:59.2]} 2. c4 {[%clk 0:03:01.5]}
2... c6 {[%clk 0:02:55.8]} 3. Nf3 {[%clk 0:02:59.7]} 3... d5 {[%clk 0:02:56.2]}
4. Nc3 {[%clk 0:02:59.9]} 4... dxc4 {[%clk 0:02:55.1]} 5. a4 {[%clk 0:02:59.1]}
5... Bf5 {[%clk 0:02:48.3]} 6. e3 {[%clk 0:02:58.6]} 6... e6 {[%clk 0:02:48.8]}
7. Bxc4 {[%clk 0:02:57.5]} 7... Bb4 {[%clk 0:02:49.3]} 8. O-O {[%clk 0:02:56.5]}
8... O-O {[%clk 0:02:49.6]} 9. Qe2 {[%clk 0:02:55.1]} 9... Bg6 {[%clk
0:02:44.5]} 10. Ne5 {[%clk 0:02:49.6]} 10... Nbd7 {[%clk 0:02:43.3]} 11. Nxg6
{[%clk 0:02:47.1]} 11... hxg6 {[%clk 0:02:42.9]} 12. Rd1 {[%clk 0:02:46]} 12...
Nb6 {[%clk 0:02:41.8]} 13. Bb3 {[%clk 0:02:40.4]} 13... Qe7 {[%clk 0:02:33.9]}
14. e4 {[%clk 0:02:36.4]} 14... e5 {[%clk 0:02:28.7]} 15. d5 {[%clk 0:02:14.5]}
15... cxd5 {[%clk 0:02:20.8]} 16. Nxd5 {[%clk 0:02:12.2]} 16... Nbxd5 {[%clk
0:02:16.2]} 17. exd5 {[%clk 0:02:12.1]} 17... Rad8 {[%clk 0:02:14]} 18. Bg5
{[%clk 0:02:10.6]} 18... e4 {[%clk 0:02:06.2]} 19. Rac1 {[%clk 0:02:05.5]} 19...
Qe5 {[%clk 0:01:56.4]} 20. Bxf6 {[%clk 0:01:52]} 20... gxf6 {[%clk 0:01:55.3]}
21. g3 {[%clk 0:01:42.7]} 21... f5 {[%clk 0:01:50.9]} 22. Kg2 {[%clk 0:01:27.1]}
22... Kg7 {[%clk 0:01:40.3]} 23. f4 {[%clk 0:01:26.1]} 23... Qf6 {[%clk
0:01:37.5]} 24. Rc7 {[%clk 0:01:23]} 24... Qb6 {[%clk 0:01:23.1]} 25. Rdc1
{[%clk 0:01:22.7]} 25... Bd6 {[%clk 0:01:21.3]} 26. R7c3 {[%clk 0:01:21.4]}
26... Be7 {[%clk 0:01:17.3]} 27. Qb5 {[%clk 0:01:13]} 27... Rd6 {[%clk
0:01:02.5]} 28. Rc7 {[%clk 0:01:04.2]} 28... Bf6 {[%clk 0:00:50.9]} 29. Rxb7
{[%clk 0:00:50]} 29... Qe3 {[%clk 0:00:50.7]} 30. Qf1 {[%clk 0:00:38.7]} 30...
Bxb2 {[%clk 0:00:29.6]} 31. Rcc7 {[%clk 0:00:37.4]} 31... Bd4 {[%clk 0:00:24.7]}
32. Bc4 {[%clk 0:00:21.5]} 32... Bb6 {[%clk 0:00:23.5]} 33. h4 {[%clk
0:00:20.4]} 33... Bxc7 {[%clk 0:00:21.5]} 34. Rxc7 {[%clk 0:00:21]} 34... Rb8
{[%clk 0:00:21.1]} 35. Qa1+ {[%clk 0:00:18.9]} 35... Kg8 {[%clk 0:00:16.8]} 36.
Qe5 {[%clk 0:00:16.1]} 36... Rb2+ {[%clk 0:00:14.9]} 37. Qxb2 {[%clk 0:00:15.5]}
37... Rb6 {[%clk 0:00:12.5]} 38. Rc8+ {[%clk 0:00:15.1]} 1-0

[Event "*** Titled Tuesday Blitz"]
[Site "Chess.com"]
[Date "2021.02.09"]
[Round "5"]
[White "Etud-otradnoe"]
[Black "PawnEatingZombie"]
[Result "1-0"]
[WhiteElo "2310"]
[BlackElo "2112"]
[TimeControl "180+1"]
[EndTime "10:57:24 PST"]
[Termination "Etud-otradnoe won on time"]

1. e4 {[%clk 0:03:00.9]} 1... c6 {[%clk 0:02:59.6]} 2. d4 {[%clk 0:02:59.6]}
2... d5 {[%clk 0:03:00]} 3. e5 {[%clk 0:02:58.4]} 3... Bf5 {[%clk 0:02:59.5]} 4.
c4 {[%clk 0:02:58]} 4... e6 {[%clk 0:02:57.4]} 5. Nc3 {[%clk 0:02:57.7]} 5...
Ne7 {[%clk 0:02:53.6]} 6. a3 {[%clk 0:02:57.2]} 6... dxc4 {[%clk 0:02:44.2]} 7.
Bxc4 {[%clk 0:02:56.2]} 7... Nd7 {[%clk 0:02:44.2]} 8. Nge2 {[%clk 0:02:41.6]}
8... Nb6 {[%clk 0:02:42.8]} 9. Bb3 {[%clk 0:02:23.5]} 9... Ned5 {[%clk
0:02:40.3]} 10. O-O {[%clk 0:02:19.6]} 10... Be7 {[%clk 0:02:38.1]} 11. Ng3
{[%clk 0:02:17.3]} 11... Bg6 {[%clk 0:02:37.1]} 12. Nce4 {[%clk 0:02:03.1]}
12... O-O {[%clk 0:02:33.2]} 13. f4 {[%clk 0:02:00.8]} 13... f5 {[%clk
0:02:06.5]} 14. exf6 {[%clk 0:01:32.9]} 14... Bxf6 {[%clk 0:02:06.2]} 15. Nc5
{[%clk 0:01:17.4]} 15... Qc8 {[%clk 0:01:48]} 16. Re1 {[%clk 0:01:00.6]} 16...
Re8 {[%clk 0:01:41.3]} 17. Kh1 {[%clk 0:00:40.4]} 17... a5 {[%clk 0:00:51.8]}
18. Nge4 {[%clk 0:00:38.8]} 18... Bxe4 {[%clk 0:00:48.4]} 19. Rxe4 {[%clk
0:00:37.6]} 19... Kf7 {[%clk 0:00:17.2]} 20. Qh5+ {[%clk 0:00:35.4]} 20... Kg8
{[%clk 0:00:15.5]} 21. Qh3 {[%clk 0:00:34.8]} 21... a4 {[%clk 0:00:09.6]} 22.
Ba2 {[%clk 0:00:33.8]} 22... Nd7 {[%clk 0:00:03.1]} 23. Nxe6 {[%clk 0:00:26.9]}
23... Nf8 {[%clk 0:00:03.1]} 24. f5 {[%clk 0:00:23.3]} 24... Nxe6 {[%clk
0:00:02.7]} 25. fxe6 {[%clk 0:00:23.2]} 25... Qc7 {[%clk 0:00:02]} 26. Bd2
{[%clk 0:00:19.6]} 26... Qd6 {[%clk 0:00:01.8]} 27. Rae1 {[%clk 0:00:18]} 27...
Re7 {[%clk 0:00:02.2]} 28. R1e2 {[%clk 0:00:09.7]} 28... Rae8 {[%clk 0:00:02.7]}
29. Be1 {[%clk 0:00:09.2]} 29... b6 {[%clk 0:00:03.3]} 30. Bg3 {[%clk 0:00:09]}
30... Qd8 {[%clk 0:00:03.4]} 31. Qf5 {[%clk 0:00:08.1]} 31... Nc7 {[%clk
0:00:01.7]} 32. h3 {[%clk 0:00:07.4]} 1-0

[Event "*** Titled Tuesday Blitz"]
[Site "Chess.com"]
[Date "2021.02.09"]
[Round "5"]
[White "HajiyevKanan"]
[Black "Colombiano07"]
[Result "0-1"]
[WhiteElo "2484"]
[BlackElo "2330"]
[TimeControl "180+1"]
[EndTime "10:57:25 PST"]
[Termination "Colombiano07 won by resignation"]

1. d4 {[%clk 0:02:08.6]} 1... d5 {[%clk 0:02:58.9]} 2. Nf3 {[%clk 0:02:08.3]}
2... c6 {[%clk 0:02:59.5]} 3. c4 {[%clk 0:02:09.2]} 3... Nf6 {[%clk 0:02:59.5]}
4. cxd5 {[%clk 0:02:10.1]} 4... cxd5 {[%clk 0:02:59.4]} 5. Nc3 {[%clk 0:02:11]}
5... a6 {[%clk 0:03:00]} 6. Bf4 {[%clk 0:02:11.7]} 6... Nc6 {[%clk 0:03:00.4]}
7. e3 {[%clk 0:02:12.4]} 7... Bg4 {[%clk 0:03:00.2]} 8. h3 {[%clk 0:02:12.6]}
8... Bxf3 {[%clk 0:03:00.5]} 9. Qxf3 {[%clk 0:02:13.5]} 9... e6 {[%clk
0:03:01.3]} 10. Bd3 {[%clk 0:02:13.8]} 10... Bd6 {[%clk 0:03:01.9]} 11. Bxd6
{[%clk 0:02:14]} 11... Qxd6 {[%clk 0:03:02.6]} 12. O-O {[%clk 0:02:14.9]} 12...
O-O {[%clk 0:03:03.2]} 13. a3 {[%clk 0:02:15]} 13... b5 {[%clk 0:03:03.4]} 14.
Rac1 {[%clk 0:02:15.1]} 14... Nd7 {[%clk 0:03:02.1]} 15. Rfd1 {[%clk 0:02:11.1]}
15... Nb6 {[%clk 0:03:02.3]} 16. e4 {[%clk 0:01:56.2]} 16... Nxd4 {[%clk
0:03:00.8]} 17. Qh5 {[%clk 0:01:51.2]} 17... g6 {[%clk 0:02:58.7]} 18. Qh6
{[%clk 0:01:50.8]} 18... Nb3 {[%clk 0:02:56.3]} 19. exd5 {[%clk 0:01:39.6]}
19... Nxc1 {[%clk 0:02:53.2]} 20. Ne4 {[%clk 0:01:39.2]} 20... Qe5 {[%clk
0:02:47.5]} 21. Rxc1 {[%clk 0:01:26.1]} 21... Nxd5 {[%clk 0:02:40.9]} 22. Rc5
{[%clk 0:01:15.1]} 22... Qxb2 {[%clk 0:02:21.6]} 23. Qg5 {[%clk 0:01:03.5]}
23... Rac8 {[%clk 0:01:37.7]} 24. Kh2 {[%clk 0:00:43.8]} 24... Rxc5 {[%clk
0:01:36.4]} 25. Nxc5 {[%clk 0:00:44.5]} 25... Qf6 {[%clk 0:01:31]} 26. Qxf6
{[%clk 0:00:27]} 26... Nxf6 {[%clk 0:01:30.8]} 27. Nxa6 {[%clk 0:00:27.9]} 27...
Ra8 {[%clk 0:01:13]} 28. Bxb5 {[%clk 0:00:27.8]} 28... Nd5 {[%clk 0:01:13.7]}
29. Kg3 {[%clk 0:00:16.5]} 29... Kf8 {[%clk 0:01:12.9]} 30. Kf3 {[%clk
0:00:15.8]} 30... Ke7 {[%clk 0:01:13.4]} 31. h4 {[%clk 0:00:13.9]} 31... Kd6
{[%clk 0:01:13.4]} 32. Bd3 {[%clk 0:00:09.3]} 32... Kc6 {[%clk 0:01:08.9]} 33.
Kg4 {[%clk 0:00:04.1]} 33... Kb6 {[%clk 0:01:01.7]} 34. Kg5 {[%clk 0:00:04.4]}
34... h5 {[%clk 0:00:58.8]} 35. Kh6 {[%clk 0:00:04.4]} 35... Nf4 {[%clk
0:00:47.3]} 36. Bf1 {[%clk 0:00:03.8]} 36... Nxg2 {[%clk 0:00:46.1]} 37. Bxg2
{[%clk 0:00:03.7]} 37... Rxa6 {[%clk 0:00:45.9]} 38. Kg7 {[%clk 0:00:04.6]}
38... Ra7 {[%clk 0:00:43.7]} 39. f4 {[%clk 0:00:03.6]} 39... Kc5 {[%clk
0:00:43.4]} 40. Be4 {[%clk 0:00:03.6]} 40... Kd4 {[%clk 0:00:43.4]} 41. Bxg6
{[%clk 0:00:03.9]} 41... fxg6+ {[%clk 0:00:43.2]} 42. Kxg6 {[%clk 0:00:04.8]}
42... Ke4 {[%clk 0:00:43.3]} 43. Kg5 {[%clk 0:00:05.4]} 43... Rxa3 {[%clk
0:00:42.4]} 44. Kxh5 {[%clk 0:00:06]} 44... Kxf4 {[%clk 0:00:41.8]} 45. Kg6
{[%clk 0:00:06.7]} 45... e5 {[%clk 0:00:41.8]} 46. h5 {[%clk 0:00:07.1]} 46...
e4 {[%clk 0:00:41.5]} 47. h6 {[%clk 0:00:07.8]} 47... e3 {[%clk 0:00:41.9]} 48.
h7 {[%clk 0:00:08.4]} 48... Ra8 {[%clk 0:00:41.8]} 49. Kg7 {[%clk 0:00:08.5]}
49... e2 {[%clk 0:00:42.3]} 50. Kf7 {[%clk 0:00:08.8]} 50... e1=Q {[%clk
0:00:42]} 51. h8=Q {[%clk 0:00:09.7]} 51... Rxh8 {[%clk 0:00:40]} 0-1

[Event "*** Titled Tuesday Blitz"]
[Site "Chess.com"]
[Date "2021.02.09"]
[Round "5"]
[White "mapleaff"]
[Black "TregubovP"]
[Result "0-1"]
[WhiteElo "2402"]
[BlackElo "2603"]
[TimeControl "180+1"]
[EndTime "10:57:26 PST"]
[Termination "TregubovP won by checkmate"]

1. e4 {[%clk 0:03:00.9]} 1... e6 {[%clk 0:02:59.5]} 2. Nc3 {[%clk 0:02:57.6]}
2... d5 {[%clk 0:02:59.6]} 3. exd5 {[%clk 0:02:55.7]} 3... exd5 {[%clk
0:02:59.7]} 4. d4 {[%clk 0:02:56.2]} 4... Nf6 {[%clk 0:02:57.4]} 5. Bd3 {[%clk
0:02:55.2]} 5... Bd6 {[%clk 0:02:52.2]} 6. Bg5 {[%clk 0:02:50.5]} 6... c6 {[%clk
0:02:48.7]} 7. Qd2 {[%clk 0:02:47.6]} 7... Qe7+ {[%clk 0:02:38.9]} 8. Nge2
{[%clk 0:02:45.9]} 8... h6 {[%clk 0:02:39.4]} 9. Bh4 {[%clk 0:02:41.9]} 9... Be6
{[%clk 0:02:20.4]} 10. O-O-O {[%clk 0:02:37.7]} 10... Nbd7 {[%clk 0:02:20.7]}
11. Rde1 {[%clk 0:02:36.1]} 11... O-O-O {[%clk 0:02:20.6]} 12. Nf4 {[%clk
0:02:31.6]} 12... g5 {[%clk 0:02:20.4]} 13. Nxe6 {[%clk 0:02:29.3]} 13... fxe6
{[%clk 0:02:20.7]} 14. Bg3 {[%clk 0:02:28.2]} 14... Bxg3 {[%clk 0:02:14.1]} 15.
hxg3 {[%clk 0:02:27.1]} 15... Qd6 {[%clk 0:02:05.5]} 16. Re2 {[%clk 0:01:50.6]}
16... e5 {[%clk 0:02:01.8]} 17. Bf5 {[%clk 0:01:35.7]} 17... Kb8 {[%clk
0:01:52.7]} 18. dxe5 {[%clk 0:01:07.2]} 18... Nxe5 {[%clk 0:01:52]} 19. Rhe1
{[%clk 0:01:05.6]} 19... Nc4 {[%clk 0:01:38.9]} 20. Qd4 {[%clk 0:01:04.6]} 20...
Qb4 {[%clk 0:01:28.6]} 21. Nd1 {[%clk 0:00:51.6]} 21... Rhf8 {[%clk 0:01:26.8]}
22. a3 {[%clk 0:00:46.7]} 22... Qa5 {[%clk 0:01:20.1]} 23. Re7 {[%clk
0:00:40.8]} 23... Qb6 {[%clk 0:00:53.6]} 24. c3 {[%clk 0:00:29.6]} 24... Qxd4
{[%clk 0:00:48.1]} 25. cxd4 {[%clk 0:00:29.5]} 25... Rde8 {[%clk 0:00:47.8]} 26.
f3 {[%clk 0:00:13.4]} 26... Nd6 {[%clk 0:00:43.9]} 27. Bg6 {[%clk 0:00:10.9]}
27... Rxe7 {[%clk 0:00:43.1]} 28. Rxe7 {[%clk 0:00:11.8]} 28... Nb5 {[%clk
0:00:38.8]} 29. Ne3 {[%clk 0:00:03.7]} 29... Nxd4 {[%clk 0:00:38.7]} 30. g4
{[%clk 0:00:03.2]} 30... a5 {[%clk 0:00:37.2]} 31. b4 {[%clk 0:00:02.7]} 31...
axb4 {[%clk 0:00:36.8]} 32. axb4 {[%clk 0:00:03.6]} 32... Ka7 {[%clk 0:00:36.3]}
33. Kb2 {[%clk 0:00:03.5]} 33... Kb6 {[%clk 0:00:36.3]} 34. Nf5 {[%clk
0:00:03.8]} 34... Nxf5 {[%clk 0:00:30.6]} 35. Bxf5 {[%clk 0:00:04.7]} 35... Re8
{[%clk 0:00:28.2]} 36. Rf7 {[%clk 0:00:04.6]} 36... Ng8 {[%clk 0:00:25.9]} 37.
Kb3 {[%clk 0:00:04.5]} 37... Re3+ {[%clk 0:00:25]} 38. Ka4 {[%clk 0:00:04.8]}
38... Ne7 {[%clk 0:00:24.6]} 39. Bd7 {[%clk 0:00:03.7]} 39... Kc7 {[%clk
0:00:21.4]} 40. Bf5 {[%clk 0:00:02.7]} 40... b5+ {[%clk 0:00:21.5]} 41. Ka5
{[%clk 0:00:02.1]} 41... Ra3# {[%clk 0:00:21.9]} 0-1

[Event "*** Titled Tuesday Blitz"]
[Site "Chess.com"]
[Date "2021.02.09"]
[Round "5"]
[White "elextranjero00"]
[Black "LogoCzar"]
[Result "1-0"]
[WhiteElo "2592"]
[BlackElo "2397"]
[TimeControl "180+1"]
[EndTime "10:57:26 PST"]
[Termination "elextranjero00 won by checkmate"]

1. Nf3 {[%clk 0:03:00.9]} 1... c6 {[%clk 0:02:56.6]} 2. e4 {[%clk 0:02:58.6]}
2... d5 {[%clk 0:02:56.9]} 3. d3 {[%clk 0:02:59]} 3... g6 {[%clk 0:02:56]} 4.
Nbd2 {[%clk 0:02:56.3]} 4... Bg7 {[%clk 0:02:56.3]} 5. d4 {[%clk 0:02:55.9]}
5... Bg4 {[%clk 0:02:48.7]} 6. e5 {[%clk 0:02:49.5]} 6... e6 {[%clk 0:02:46.4]}
7. h3 {[%clk 0:02:44.2]} 7... Bxf3 {[%clk 0:02:46.4]} 8. Nxf3 {[%clk 0:02:45.1]}
8... c5 {[%clk 0:02:44]} 9. c3 {[%clk 0:02:41.3]} 9... Nc6 {[%clk 0:02:40.7]}
10. Be3 {[%clk 0:02:20.9]} 10... c4 {[%clk 0:02:34.5]} 11. h4 {[%clk 0:02:06.5]}
11... h5 {[%clk 0:02:33.5]} 12. g3 {[%clk 0:01:57.8]} 12... b5 {[%clk
0:02:30.8]} 13. Ng5 {[%clk 0:01:53.7]} 13... Nge7 {[%clk 0:02:29]} 14. Bh3
{[%clk 0:01:52.1]} 14... Nf5 {[%clk 0:02:26]} 15. Bxf5 {[%clk 0:01:51.1]} 15...
exf5 {[%clk 0:02:16.4]} 16. e6 {[%clk 0:01:40.6]} 16... fxe6 {[%clk 0:02:14.5]}
17. Nxe6 {[%clk 0:01:40.6]} 17... Qe7 {[%clk 0:02:14.1]} 18. Nf4 {[%clk
0:01:31]} 18... Qe4 {[%clk 0:02:07.8]} 19. O-O {[%clk 0:01:28.5]} 19... Kf7
{[%clk 0:02:07.3]} 20. Re1 {[%clk 0:01:23.8]} 20... Qe7 {[%clk 0:01:52.7]} 21.
Nxd5 {[%clk 0:01:21.6]} 21... Qd6 {[%clk 0:01:52.6]} 22. Qf3 {[%clk 0:01:20]}
22... Rad8 {[%clk 0:01:50.2]} 23. Nf4 {[%clk 0:01:17.9]} 23... Ne7 {[%clk
0:01:46.5]} 24. Nh3 {[%clk 0:01:08.3]} 24... Qd5 {[%clk 0:01:38]} 25. Ng5+
{[%clk 0:01:02]} 25... Kg8 {[%clk 0:01:36.7]} 26. Qf4 {[%clk 0:01:00.6]} 26...
Bf6 {[%clk 0:01:30.5]} 27. a4 {[%clk 0:00:55.8]} 27... b4 {[%clk 0:01:18.8]} 28.
Qc7 {[%clk 0:00:52.6]} 28... Rd7 {[%clk 0:01:11.9]} 29. Qb8+ {[%clk 0:00:49.1]}
29... Kg7 {[%clk 0:01:09.2]} 30. Qxb4 {[%clk 0:00:48.1]} 30... Nc6 {[%clk
0:01:04.2]} 31. Qb5 {[%clk 0:00:47.5]} 31... Rb8 {[%clk 0:00:58.6]} 32. Qxd5
{[%clk 0:00:46.1]} 32... Rxd5 {[%clk 0:00:58.7]} 33. Re2 {[%clk 0:00:44.2]}
33... Na5 {[%clk 0:00:50.7]} 34. Bf4 {[%clk 0:00:40.4]} 34... Rb7 {[%clk
0:00:46.7]} 35. Ne6+ {[%clk 0:00:40]} 35... Kf7 {[%clk 0:00:45.5]} 36. Nc5
{[%clk 0:00:40.6]} 36... Re7 {[%clk 0:00:39.2]} 37. Rae1 {[%clk 0:00:38.9]}
37... Rxe2 {[%clk 0:00:38.5]} 38. Rxe2 {[%clk 0:00:39.8]} 38... Be7 {[%clk
0:00:38.1]} 39. Ne6 {[%clk 0:00:37.3]} 39... Rd7 {[%clk 0:00:33.7]} 40. Bg5
{[%clk 0:00:36]} 40... Nc6 {[%clk 0:00:30.4]} 41. Bxe7 {[%clk 0:00:34.4]} 41...
Rxe7 {[%clk 0:00:23.4]} 42. Ng5+ {[%clk 0:00:34]} 42... Kf6 {[%clk 0:00:23.8]}
43. Rxe7 {[%clk 0:00:33.9]} 43... Nxe7 {[%clk 0:00:22.4]} 44. Nf3 {[%clk
0:00:33]} 44... Nd5 {[%clk 0:00:18.6]} 45. Ne5 {[%clk 0:00:32.7]} 45... Nb6
{[%clk 0:00:17.8]} 46. a5 {[%clk 0:00:32.5]} 46... Na4 {[%clk 0:00:17.5]} 47.
Nxc4 {[%clk 0:00:32.6]} 47... Ke6 {[%clk 0:00:17.9]} 48. Kf1 {[%clk 0:00:29]}
48... Kd5 {[%clk 0:00:18.1]} 49. Ne3+ {[%clk 0:00:29.1]} 49... Ke4 {[%clk
0:00:17]} 50. Ke2 {[%clk 0:00:28.2]} 50... f4 {[%clk 0:00:15]} 51. f3# {[%clk
0:00:27.8]} 1-0

[Event "*** Titled Tuesday Blitz"]
[Site "Chess.com"]
[Date "2021.02.09"]
[Round "5"]
[White "tylityli"]
[Black "Nathan_Filgueiras"]
[Result "0-1"]
[WhiteElo "2276"]
[BlackElo "2448"]
[TimeControl "180+1"]
[EndTime "10:57:26 PST"]
[Termination "Nathan_Filgueiras won on time"]

1. d4 {[%clk 0:03:00.9]} 1... Nf6 {[%clk 0:02:59.4]} 2. c4 {[%clk 0:03:00.1]}
2... e6 {[%clk 0:02:59.7]} 3. Nc3 {[%clk 0:02:58.9]} 3... Bb4 {[%clk 0:02:59]}
4. e3 {[%clk 0:02:59.1]} 4... O-O {[%clk 0:02:55.7]} 5. Ne2 {[%clk 0:03:00]}
5... c6 {[%clk 0:02:54.7]} 6. a3 {[%clk 0:02:58]} 6... Ba5 {[%clk 0:02:54.9]} 7.
b4 {[%clk 0:02:51.9]} 7... Bc7 {[%clk 0:02:54.9]} 8. f4 {[%clk 0:02:51.5]} 8...
d5 {[%clk 0:02:50.7]} 9. c5 {[%clk 0:02:50.9]} 9... g5 {[%clk 0:02:07]} 10. Ng3
{[%clk 0:02:27]} 10... gxf4 {[%clk 0:01:23.1]} 11. exf4 {[%clk 0:02:25]} 11...
Kh8 {[%clk 0:01:23.6]} 12. Bd3 {[%clk 0:02:21.4]} 12... Rg8 {[%clk 0:01:23.3]}
13. O-O {[%clk 0:02:18.9]} 13... Nbd7 {[%clk 0:01:18.3]} 14. Nh5 {[%clk
0:01:52.5]} 14... Nf8 {[%clk 0:00:46.7]} 15. Kh1 {[%clk 0:01:27.7]} 15... Ng4
{[%clk 0:00:38.7]} 16. g3 {[%clk 0:01:02.6]} 16... Ng6 {[%clk 0:00:28.4]} 17. f5
{[%clk 0:00:54.8]} 17... exf5 {[%clk 0:00:25.4]} 18. Bxf5 {[%clk 0:00:54]} 18...
Bxf5 {[%clk 0:00:08.2]} 19. Rxf5 {[%clk 0:00:53.6]} 19... Nxh2 {[%clk
0:00:06.8]} 20. Kxh2 {[%clk 0:00:46.1]} 20... Qh4+ {[%clk 0:00:06]} 21. Kg2
{[%clk 0:00:36.9]} 21... Ne7 {[%clk 0:00:06.1]} 22. Qf3 {[%clk 0:00:16.2]} 22...
Nxf5 {[%clk 0:00:05.5]} 23. Qxf5 {[%clk 0:00:14.3]} 23... Rxg3+ {[%clk
0:00:05.4]} 24. Nxg3 {[%clk 0:00:11.5]} 24... Qxg3+ {[%clk 0:00:06.3]} 25. Kf1
{[%clk 0:00:10.9]} 25... Rg8 {[%clk 0:00:06.6]} 26. Qf6+ {[%clk 0:00:06.4]}
26... Rg7 {[%clk 0:00:06.2]} 27. Bd2 {[%clk 0:00:03.9]} 27... Qg1+ {[%clk
0:00:03]} 28. Ke2 {[%clk 0:00:04.1]} 28... Qg2+ {[%clk 0:00:01.8]} 29. Kd3
{[%clk 0:00:03.7]} 29... Qg3+ {[%clk 0:00:01.7]} 30. Kc2 {[%clk 0:00:03.9]}
30... Qg2 {[%clk 0:00:02.3]} 31. Rf1 {[%clk 0:00:03.2]} 31... Bg3 {[%clk
0:00:02.4]} 32. Rf3 {[%clk 0:00:02.3]} 32... Bh4 {[%clk 0:00:02.3]} 0-1